bitfinex/quotes_ETHUSD_20260208
["timestamp","ask_amount","ask_price","bid_price","bid_amount"]
[1770543246517,0.002,2110.5,2109.7,0.001]
[1770543247022,0.002,2110.5,2109.8,1.18494644]
[1770543248946,0.002,2110.5,2109.7,0.001]
[1770543249536,0.9068187,2110.4,2109.7,0.001]
[1770543249878,0.80641262,2110.4,2109.7,0.001]
[1770543250772,7.53378655,2110.1,2109.2,5.60519826]
[1770543250938,1.1850026,2109.7,2108.8,0.001]
[1770543251285,1.1850026,2109.7,2108.7,0.001]
[1770543251286,0.04083299,2108.9,2108.7,0.001]
[1770543251442,0.9068187,2109.1,2108.6,0.001]
[1770543251908,0.9068187,2108.9,2107.5,1.18622809]
[1770543252065,0.9068187,2108.9,2107.6,1.18917822]
[1770543252268,0.9068187,2108.9,2107.5,1.18620006]
[1770543252577,0.9068187,2108.6,2107.5,0.003]
[1770543252783,0.9068187,2108.6,2107.5,1.18923877]
[1770543253200,2.11626229,2108.5,2107.5,1.18923877]
[1770543253583,0.93058527,2108.4,2107.5,1.18923877]
[1770543254398,0.97141826,2108.4,2107.5,0.003]
[1770543254696,0.93058527,2108.4,2107.5,0.003]
[1770543255498,1.18578949,2108.3,2107.5,0.003]
[1770543255694,2.11637476,2108.3,2107.5,0.003]
[1770543256994,0.93058527,2108.2,2106.9,1.18657225]
[1770543257165,0.93058527,2108.2,2107.1,0.003]
[1770543257483,1.18588198,2108.2,2107.1,0.003]
[1770543257686,0.93058527,2108.4,2107.1,0.97836217]
[1770543258289,0.93058527,2108.4,2107.7,0.001]
[1770543258675,0.93058527,2108.3,2107.5,0.001]
[1770543259100,0.93058527,2108.3,2107.5,0.003]
[1770543259277,1.18584574,2108.2,2107.5,0.003]
[1770543260967,2.11641616,2108.3,2107.5,0.003]
[1770543261475,8.05696145,2108.4,2107.5,0.003]
[1770543261476,4.49977188,2108.4,2107.5,0.003]
[1770543262602,5.43035715,2108.4,2107.5,0.003]
[1770543262808,0.93058527,2108.3,2107.5,0.003]
[1770543264180,1.18584574,2108.2,2107.5,0.003]
[1770543264503,2.11643101,2108.2,2107.5,0.003]
[1770543264707,0.93058527,2108.1,2107.5,0.003]
[1770543265285,0.93058527,2108.1,2107.1,1.18642881]
[1770543265523,0.93058527,2108.1,2107.2,0.003]
[1770543266323,0.93058527,2107.9,2107.2,0.003]
[1770543267999,0.93058527,2107.6,2106.6,0.001]
[1770543268199,0.93058527,2107.3,2106.7,0.003]
[1770543268517,0.93058527,2107.3,2106.6,0.004]
[1770543268720,1.1862959,2107.4,2106.3,0.0830498]
[1770543268721,1.07381826,2107.2,2106.3,0.0830498]
[1770543269082,4.24558527,2107.2,2106.3,0.0830498]
[1770543269486,0.93058527,2107.1,2106.3,0.0830498]
[1770543270115,1.18663375,2106.8,2105.8,1.18715939]
[1770543270313,0.93058527,2106.7,2105.7,1.18720934]
[1770543270517,1.18661398,2106.9,2105.8,0.97536217]
[1770543271084,1.18661398,2106.9,2105.7,1.18720934]
[1770543271623,1.18661398,2106.9,2105.8,0.97536217]
[1770543271985,1.18661398,2106.9,2106.3,0.001]
[1770543272285,4.74617448,2107.0,2106.3,0.001]
[1770543273695,1.18649758,2107.1,2106.3,0.001]
[1770543274424,5.67639737,2107.2,2106.3,0.001]
[1770543274632,0.93058527,2107.1,2106.3,0.001]
[1770543276134,4.7458121,2107.2,2106.3,0.001]
[1770543277039,5.72771686,2107.2,2106.3,0.001]
[1770543277936,0.98190476,2107.1,2106.3,0.001]
[1770543278607,2.16842588,2107.0,2106.3,0.001]
[1770543279130,0.98190476,2106.9,2106.3,0.001]
[1770543280210,0.98190476,2106.7,2106.3,0.001]
[1770543280413,4.29890476,2106.7,2106.3,0.001]
[1770543280623,4.50373396,2106.7,2106.3,0.001]
[1770543281826,0.98190476,2106.6,2106.3,0.001]
[1770543282008,4.50373396,2106.7,2106.3,0.001]
[1770543282912,5.48563872,2106.7,2106.3,0.001]
[1770543283118,4.50373396,2106.7,2106.3,0.001]
[1770543283310,4.50369491,2106.7,2106.3,0.001]
[1770543284238,4.50369491,2106.7,2106.5,0.001]
[1770543284610,3.317,2106.7,2106.5,0.001]
[1770543284812,0.002,2107.0,2106.5,0.001]
[1770543285537,0.98390476,2107.0,2106.5,0.001]
[1770543285745,0.98390476,2107.0,2105.7,1.18723755]
[1770543285905,1.02473775,2107.0,2105.7,1.18723755]
[1770543286109,1.02473775,2107.0,2105.6,2.1298936]
[1770543286306,1.02473775,2107.0,2105.6,1.1872554]
[1770543286634,1.02473775,2107.0,2105.7,1.18724574]
[1770543286833,2.16848219,2106.9,2105.6,4.74922649]
[1770543287144,0.98190476,2106.8,2105.6,1.18731003]
[1770543288334,0.98190476,2106.8,2105.6,2.12994823]
[1770543288516,1.02273775,2106.7,2105.5,1.18735177]
[1770543288711,1.02273775,2106.7,2105.5,1.18734336]
[1770543288922,1.02273775,2106.7,2105.4,4.74950941]
[1770543288923,0.98190476,2106.5,2105.4,4.74950941]
[1770543289127,3.318,2106.4,2105.4,1.18742281]
[1770543289441,4.29990476,2106.4,2105.4,1.18742281]
[1770543290039,1.02273775,2106.3,2104.9,4.75064833]
[1770543290356,4.29990476,2106.2,2105.2,1.18750646]
[1770543290648,4.29990476,2106.2,2105.1,1.18754905]
[1770543290649,0.98190476,2106.1,2105.1,1.18754905]
[1770543291222,1.18708452,2106.0,2104.9,4.75074214]
[1770543291421,1.18708452,2106.0,2105.0,0.9426382]
[1770543292347,0.98190476,2106.3,2105.0,0.9426382]
[1770543292533,1.18694498,2106.3,2105.0,0.9426382]
[1770543293647,4.74758282,2106.4,2105.2,0.9426382]
[1770543294026,0.98190476,2106.3,2105.2,0.9426382]
[1770543295140,4.74758282,2106.4,2105.2,0.9426382]
[1770543295141,5.72948758,2106.4,2105.2,0.9426382]
[1770543295448,2.16865117,2106.6,2105.2,0.9426382]
[1770543295745,2.16865117,2106.6,2105.4,0.9426382]
[1770543296944,8.06498566,2106.8,2105.4,0.9426382]
[1770543296945,3.318,2106.8,2105.4,0.9426382]
[1770543297146,4.50466185,2106.8,2105.4,0.9426382]
[1770543297462,1.18666185,2106.8,2105.4,0.9426382]
[1770543297756,0.98190476,2106.9,2105.8,0.9426382]
[1770543297946,0.98190476,2106.9,2105.7,1.18725364]
[1770543298151,0.002,2106.3,2105.7,1.18725364]
[1770543298760,0.002,2106.3,2105.8,0.9426382]
[1770543299637,3.32,2107.0,2106.0,0.9426382]
[1770543299842,4.50652572,2107.0,2106.0,0.9426382]
[1770543300041,0.98190476,2106.9,2105.9,1.18714088]
[1770543301075,0.98190476,2106.9,2105.4,0.9426382]
[1770543301259,0.98190476,2106.6,2105.4,0.9426382]
[1770543301573,0.98190476,2106.6,2105.5,1.18733666]
[1770543301744,2.16870751,2106.5,2105.2,2.13117382]
[1770543301933,2.16870751,2106.5,2105.3,0.9426382]
[1770543302353,1.18672592,2106.7,2105.5,0.9426382]
[1770543302549,1.18672592,2106.7,2105.2,2.13117382]
[1770543302550,0.98190476,2106.6,2105.2,2.13117382]
[1770543302746,0.98190476,2106.6,2105.3,0.9426382]
[1770543303467,1.02273775,2106.6,2105.2,0.001]
[1770543303765,0.98190476,2106.2,2105.2,0.001]
[1770543303934,0.98190476,2106.1,2105.2,0.001]
[1770543304371,3.318,2106.2,2105.2,0.001]
[1770543304372,0.98190476,2105.9,2105.2,0.001]
[1770543304736,0.04083299,2106.0,2104.4,1.18795626]
[1770543304737,0.98190476,2105.6,2104.4,1.18795626]
[1770543304933,0.98190476,2105.6,2104.3,3.318]
[1770543305213,6.97293123,2105.0,2102.5,0.04083299]
[1770543305467,0.04083299,2105.4,2102.1,0.140626]
[1770543305468,0.98190476,2104.8,2103.4,0.9426382]
[1770543305637,0.98190476,2104.8,2103.4,5.6967997]
[1770543305837,0.93928409,2104.7,2103.5,1.21455013]
[1770543306033,2.12704114,2104.9,2103.6,0.95798264]
[1770543306278,0.93928409,2104.8,2103.5,1.18849536]
[1770543306740,0.93928409,2104.8,2103.4,1.21503518]
[1770543306939,0.93928409,2104.8,2103.5,0.02651936]
[1770543307137,0.93928409,2104.8,2103.6,0.02712542]
[1770543307366,0.93928409,2104.8,2103.4,1.18851455]
[1770543307536,1.18775705,2104.9,2103.4,1.18851455]
[1770543307537,0.93928409,2104.6,2103.4,1.18855171]
[1770543307866,0.93928409,2104.4,2103.2,4.75461957]
[1770543308036,0.93928409,2104.2,2102.6,0.1024]
[1770543308235,0.04083299,2104.3,2101.7,2.56025339]
[1770543308236,0.04083299,2102.7,2101.7,2.56025339]
[1770543308470,0.04083299,2102.3,2101.6,1.18953586]
[1770543308636,0.04083299,2102.6,2101.7,1.18950064]
[1770543308842,0.04083299,2102.5,2101.7,1.1895024]
[1770543309042,0.04083299,2102.5,2100.2,0.04083299]
[1770543309043,0.04083299,2102.2,2100.7,0.95798264]
[1770543309266,0.04083299,2102.2,2101.3,1.18972632]
[1770543309472,0.04083299,2102.2,2100.7,0.95798264]
[1770543309665,0.93928409,2102.2,2101.2,1.18978776]
[1770543309968,1.23015061,2102.1,2100.8,1.19002284]
[1770543310168,1.53928409,2102.0,2100.8,1.19002284]
[1770543310538,0.04083299,2101.8,2100.8,1.14002284]
[1770543310734,0.04083299,2101.5,2100.8,1.14002284]
[1770543311136,0.93928409,2101.8,2100.0,4.76183648]
[1770543311372,0.04083299,2101.7,2100.2,0.95798264]
[1770543311675,0.04083299,2101.7,2100.4,1.19020723]
[1770543311845,1.18973968,2101.3,2099.8,0.95798264]
[1770543312538,1.18973968,2101.3,2101.2,0.001]
[1770543312740,0.93928409,2101.5,2099.8,0.95798264]
[1770543313052,0.98011708,2101.3,2099.7,4.76253681]
[1770543313378,0.93928409,2100.5,2099.1,4.76388711]
[1770543313556,4.25191748,2101.3,2099.7,0.94141648]
[1770543313763,0.04083299,2101.2,2099.7,0.94141648]
[1770543313970,0.04083299,2100.9,2099.8,1.19058957]
[1770543314153,0.04083299,2100.9,2099.1,1.19096448]
[1770543314154,0.04083299,2100.3,2099.1,1.19096448]
[1770543314467,0.04083299,2100.3,2099.1,1.19098265]
[1770543314468,0.04083299,2100.0,2099.1,1.19098265]
[1770543314768,0.04083299,2099.7,2098.1,0.94141648]
[1770543314967,0.04083299,2099.7,2098.6,1.1912305]
[1770543314968,0.04083299,2099.5,2098.6,1.1912305]
[1770543315169,0.93091748,2100.2,2098.6,1.1912305]
[1770543315465,0.04083299,2100.3,2098.6,1.1912305]
[1770543315466,0.04083299,2100.0,2098.6,1.1912305]
[1770543315674,0.04083299,2100.0,2098.0,4.76637132]
[1770543315675,0.04083299,2099.4,2098.0,4.76637132]
[1770543315872,1.19088975,2099.3,2098.0,4.76641429]
[1770543316048,0.93091748,2099.8,2098.1,0.94141648]
[1770543316248,0.93091748,2099.5,2097.9,1.282288]
[1770543316438,0.93091748,2099.9,2098.2,0.04083299]
[1770543316638,0.04083299,2099.7,2098.0,0.94141648]
[1770543316882,0.97175047,2099.7,2098.0,0.94141648]
[1770543317244,0.93091748,2099.7,2098.0,0.94141648]
[1770543317558,4.76171357,2100.1,2098.5,0.98224947]
[1770543317559,0.93091748,2100.1,2098.5,0.98224947]
[1770543317942,2.12139009,2100.1,2098.6,1.19127037]
[1770543318180,2.12139009,2100.1,2097.9,0.090626]
[1770543318181,0.04083299,2098.9,2097.9,0.090626]
[1770543318347,0.97175047,2098.9,2097.9,0.090626]
[1770543318686,0.97175047,2098.9,2096.0,0.94141648]
[1770543318687,0.04083299,2097.8,2096.0,0.94141648]
[1770543318843,0.93091748,2099.7,2097.8,0.04083299]
[1770543319046,0.04083299,2099.3,2097.6,3.32244648]
[1770543319241,0.97175047,2100.0,2097.9,0.94141648]
[1770543319487,1.19030614,2100.3,2098.4,3.29344648]
[1770543319655,0.93091748,2100.2,2098.7,0.04083299]
[1770543319850,1.19030614,2100.3,2098.8,0.04083299]
[1770543320063,2.12111029,2100.5,2099.0,1.19104335]
[1770543320250,0.93091748,2100.4,2099.0,1.19104335]
[1770543320865,0.97175047,2100.4,2098.5,1.19130131]
[1770543321052,0.93091748,2099.9,2098.4,4.76545862]
[1770543321253,0.93091748,2099.9,2098.9,1.19109256]
[1770543321547,3.326,2100.2,2098.9,1.19109256]
[1770543322058,1.1904195,2100.1,2098.8,4.76461717]
[1770543322255,4.51639916,2100.2,2098.7,1.1912136]
[1770543322455,0.93091748,2100.3,2098.8,0.04083299]
[1770543322753,0.93091748,2100.6,2098.8,0.04083299]
[1770543322957,0.93091748,2100.6,2099.1,0.04083299]
[1770543323158,0.93,2100.8,2099.4,0.04083299]
[1770543323562,2.12003728,2100.8,2099.4,0.04083299]
[1770543323858,1.18966044,2101.5,2099.8,0.98224947]
[1770543324172,1.18966044,2101.5,2099.9,1.19053288]
[1770543324766,2.12026522,2102.0,2100.4,0.04083299]
[1770543324967,2.12026522,2102.0,2100.2,0.94141648]
[1770543325279,0.6,2101.3,2100.3,0.98224947]
[1770543325956,0.6,2101.3,2100.6,0.04083299]
[1770543326154,0.97175047,2101.9,2099.8,0.94141648]
[1770543326353,0.97175047,2101.9,2100.5,1.19014139]
[1770543326577,0.93091748,2101.9,2100.6,1.19010467]
[1770543326772,1.18934774,2102.0,2100.6,1.19010467]
[1770543327360,1.18932518,2102.1,2100.6,1.23093766]
[1770543327559,1.18932518,2102.1,2100.6,1.19010467]
[1770543327560,2.16107565,2102.1,2100.6,1.19010467]
[1770543327780,1.18932518,2102.1,2100.6,1.19010467]
[1770543328787,1.18914794,2102.4,2100.8,0.98224947]
[1770543329494,1.43627569,2104.4,2102.0,0.94141648]
[1770543329653,2.36719317,2104.4,2102.9,0.04083299]
[1770543329851,2.118961,2104.4,2102.6,0.04083299]
[1770543330062,2.118961,2104.4,2102.3,0.04083299]
[1770543330063,0.93091748,2104.0,2101.9,0.94141648]
[1770543330292,0.93091748,2104.0,2102.6,1.22978243]
[1770543330293,1.1882694,2103.9,2102.6,1.22978243]
[1770543330449,1.1882694,2103.9,2102.3,0.04083299]
[1770543330450,2.11918688,2103.9,2102.5,1.18902805]
[1770543330651,2.11918688,2103.9,2102.5,1.18904041]
[1770543330880,0.93091748,2103.8,2102.4,1.22994485]
[1770543331084,1.1882694,2103.9,2102.2,4.75691907]
[1770543331085,0.97175047,2103.7,2102.2,4.75691907]
[1770543331316,0.97175047,2103.7,2102.4,1.1891117]
[1770543331482,0.93091748,2103.7,2101.9,0.98224947]
[1770543331677,1.1882694,2103.9,2102.7,1.1889354]
[1770543331915,4.75285171,2104.1,2102.7,1.1889354]
[1770543332085,1.18793062,2104.5,2102.8,0.04083299]
[1770543332285,4.75151232,2104.6,2102.9,1.18883446]
[1770543332497,4.75151232,2104.6,2102.9,2.13025094]
[1770543333213,4.75151232,2104.6,2103.1,0.04083299]
[1770543333418,0.04083299,2104.2,2102.8,1.1888886]
[1770543333633,0.97175047,2104.5,2102.8,1.1888886]
[1770543334420,1.18798707,2104.4,2102.7,4.75577134]
[1770543334604,0.1024,2104.9,2103.2,0.04083299]
[1770543334783,0.1024,2104.9,2103.2,0.98224947]
[1770543334784,4.75104522,2104.9,2103.2,0.98224947]
[1770543335188,4.75104522,2104.9,2103.2,0.94141648]
[1770543335510,4.75104522,2104.9,2103.3,0.04083299]
[1770543335708,1.18770487,2104.9,2103.3,0.04083299]
[1770543335908,1.18747921,2105.4,2103.6,0.04083299]
[1770543336095,1.18747921,2105.4,2103.9,0.04083299]
[1770543336298,1.18747921,2105.4,2103.6,1.00169161]
[1770543336299,0.99797825,2105.3,2103.7,1.18838237]
[1770543336506,4.74969127,2105.6,2103.9,0.04083299]
[1770543337393,4.74969127,2105.6,2104.2,0.04083299]
[1770543337394,1.18731003,2105.6,2104.2,0.04083299]
[1770543337595,1.18925736,2105.7,2104.5,0.04083299]
[1770543337808,0.002,2105.7,2104.5,0.04083299]
[1770543338017,0.002,2105.7,2104.8,0.04083299]
[1770543338184,0.002,2105.7,2104.5,4.28485862]
[1770543338385,0.002,2105.7,2104.7,0.04083299]
[1770543339095,0.002,2105.7,2104.6,1.18787418]
[1770543339414,0.002,2105.7,2104.5,1.1878932]
[1770543339585,0.002,2105.7,2104.0,5.71358252]
[1770543339787,0.002,2105.7,2104.0,0.96085862]
[1770543340115,0.04083299,2105.6,2104.2,1.18806392]
[1770543340285,2.18534467,2105.5,2103.8,1.18832588]
[1770543340490,1.18736642,2105.5,2103.9,0.04083299]
[1770543341018,1.18736642,2105.5,2103.8,2.1491845]
[1770543341791,1.18736642,2105.5,2103.9,0.04083299]
[1770543342198,1.18736642,2105.5,2103.8,2.1491845]
[1770543342199,1.22819941,2105.5,2103.8,2.1491845]
[1770543342402,0.99797825,2105.4,2103.8,1.18832588]
[1770543343116,1.03881124,2104.9,2103.1,4.75477768]
[1770543343287,1.03881124,2104.6,2102.8,5.71636225]
[1770543343490,0.04083299,2104.3,2103.1,1.18872124]
[1770543343704,0.04083299,2104.3,2103.0,1.1887425]
[1770543343911,3.323,2104.8,2103.5,1.18846048]
[1770543344113,3.323,2104.8,2103.4,1.18851222]
[1770543344417,1.18781774,2104.7,2103.1,1.18872141]
[1770543345189,2.18579599,2104.7,2103.1,1.18872141]
[1770543345715,1.03881124,2104.6,2103.0,1.18873756]
[1770543346221,0.99797825,2104.6,2103.0,1.18873756]
[1770543346517,4.75139355,2104.7,2103.3,0.04083299]
[1770543346821,4.75139355,2104.7,2103.0,0.04083299]
[1770543347031,4.75139355,2104.7,2103.0,1.00169161]
[1770543347216,0.04083299,2104.6,2103.0,0.96085862]
[1770543347520,0.04083299,2104.6,2102.7,14.91127609]
[1770543347521,0.04083299,2104.3,2102.8,1.18885668]
[1770543348023,1.03881124,2104.6,2102.8,1.18885668]
[1770543348519,1.03881124,2104.6,2102.6,4.79639699]
[1770543348520,1.18809999,2104.2,2102.6,4.75600523]
[1770543348887,1.18809999,2104.2,2102.6,4.79683822]
[1770543349418,1.18809999,2104.2,2102.6,5.75769684]
[1770543349991,1.18809999,2104.2,2102.6,5.71686385]
[1770543350394,1.18809999,2104.2,2102.5,4.75608269]
[1770543350395,2.18607824,2104.2,2102.5,4.75608269]
[1770543351020,2.18807824,2104.2,2102.6,0.001]
[1770543354035,0.99797825,2104.1,2102.6,0.001]
[1770543354400,0.002,2104.2,2102.8,1.188891]
[1770543355626,0.002,2104.2,2102.8,2.14974962]
[1770543360033,0.002,2104.2,2102.9,0.96085862]
[1770543360532,0.002,2104.2,2103.0,1.00169161]
[1770543360717,0.002,2104.2,2102.8,1.188891]
[1770543360920,1.19009999,2104.2,2102.8,1.188891]
[1770543361108,0.04083299,2103.8,2102.6,0.001]
[1770543361309,1.03881124,2104.1,2102.6,0.001]
[1770543361310,0.04083299,2104.1,2102.7,1.18891309]
[1770543361510,1.03881124,2104.1,2102.7,1.18891309]
[1770543361712,1.03881124,2103.8,2102.6,0.001]
[1770543362063,0.04083299,2103.5,2102.6,0.001]
[1770543362436,1.03881124,2103.5,2102.6,0.001]
[1770543363248,0.04083299,2103.2,2102.6,0.001]
[1770543363541,1.03881124,2103.2,2102.6,0.001]
[1770543363718,1.03881124,2103.2,2102.4,0.001]
[1770543363910,0.99797825,2103.2,2102.4,0.001]
[1770543364309,1.59797825,2103.0,2102.4,0.001]
[1770543364706,1.59797825,2103.0,2101.7,1.18951325]
[1770543364917,1.03881124,2102.9,2101.7,1.18951325]
[1770543365132,0.99797825,2102.9,2101.7,1.18951325]
[1770543365331,1.188891,2102.8,2101.3,2.1505983]
[1770543365536,1.188891,2102.8,2101.3,1.18973968]
[1770543365537,0.99797825,2102.7,2101.3,1.18973968]
[1770543365736,1.03881124,2102.6,2101.5,0.001]
[1770543366432,0.97332516,2102.3,2101.5,0.001]
[1770543367225,1.18940006,2101.9,2100.6,1.19013615]
[1770543367425,4.75709726,2102.2,2100.7,0.91612947]
[1770543367618,4.75709726,2102.2,2100.6,1.19013615]
[1770543367619,5.73042242,2102.2,2100.6,1.19013615]
[1770543367816,0.97332516,2101.9,2100.6,1.19013615]
[1770543368026,0.93249217,2101.9,2100.6,1.19013615]
[1770543368936,4.75709726,2102.2,2100.7,0.91612947]
[1770543369240,5.68958943,2102.2,2100.5,4.76073181]
[1770543369618,0.04083299,2102.1,2100.5,4.76073181]
[1770543369835,0.04083299,2102.1,2100.4,4.7605446]
[1770543369836,0.97332516,2102.1,2100.4,4.7605446]
[1770543370047,0.93249217,2102.1,2100.4,5.67667407]
[1770543370344,0.97332516,2102.1,2100.4,4.7605446]
[1770543370544,0.04083299,2101.8,2100.4,4.7605446]
[1770543370775,0.04083299,2101.5,2099.9,0.91612947]
[1770543370928,0.97332516,2101.5,2100.3,1.19029964]
[1770543371123,0.93249217,2101.5,2100.3,1.19029964]
[1770543371324,1.18968306,2101.4,2100.0,1.19047619]
[1770543371534,2.12217523,2101.4,2100.0,1.19047619]
[1770543372352,2.12217523,2101.4,2099.9,1.19050407]
[1770543372353,0.97332516,2101.2,2099.9,1.19050407]
[1770543372521,0.97332516,2101.1,2099.9,1.19050407]
[1770543372719,0.04083299,2101.0,2099.9,1.19052717]
[1770543372947,0.93249217,2101.0,2099.9,1.19052717]
[1770543373157,0.04083299,2100.6,2099.6,1.19066035]
[1770543373329,1.23085583,2100.8,2099.1,5.69044364]
[1770543373527,2.21612956,2100.8,2099.1,5.69044364]
[1770543373732,0.98527373,2100.7,2099.1,5.69044364]
[1770543373937,1.23085583,2100.8,2099.3,0.9267115]
[1770543374345,2.21612956,2100.8,2099.1,4.76373214]
[1770543374548,0.98527373,2100.7,2099.1,4.76373214]
[1770543374749,0.04083299,2100.5,2099.1,4.76373214]
[1770543375069,1.19002284,2100.8,2099.2,0.96754449]
[1770543375427,4.76007255,2100.9,2099.3,1.19087314]
[1770543375656,4.76009139,2101.0,2099.3,1.19087314]
[1770543375852,4.76009139,2101.0,2099.3,2.11758464]
[1770543376053,1.18990956,2101.0,2099.4,0.9267115]
[1770543376432,4.51476304,2101.3,2099.7,0.9267115]
[1770543376832,3.325,2101.3,2099.9,0.96754449]
[1770543377252,4.51474241,2101.3,2099.9,0.96754449]
[1770543377469,4.75833628,2101.6,2100.1,0.9267115]
[1770543377765,1.18945665,2101.8,2100.2,0.9267115]
[1770543377969,1.02610672,2101.5,2100.0,1.19047619]
[1770543378133,0.04083299,2101.2,2100.0,1.19047619]
[1770543378332,1.02610672,2101.5,2100.0,1.19047619]
[1770543378565,0.98527373,2101.2,2100.0,1.19047619]
[1770543378768,0.98527373,2102.1,2100.3,0.9267115]
[1770543379058,1.18934348,2102.0,2100.3,0.9267115]
[1770543379432,0.98527373,2102.7,2100.9,6.79310524]
[1770543379629,2.17422757,2102.7,2101.0,0.9267115]
[1770543379836,0.002,2102.8,2101.1,0.96754449]
[1770543380060,1.1909104,2102.8,2101.1,0.96754449]
[1770543380261,1.1909104,2102.8,2101.2,9.971625]
[1770543380440,1.1909104,2102.8,2101.1,0.96754449]
[1770543380441,0.002,2102.8,2101.5,0.9267115]
[1770543380652,1.19093632,2102.8,2101.5,0.9267115]
[1770543380834,0.6,2102.6,2101.5,0.9267115]
[1770543381042,0.002,2102.8,2101.5,0.9267115]
[1770543381340,0.002,2102.8,2101.6,1.18956985]
[1770543383236,0.002,2102.8,2101.7,0.9267115]
[1770543383456,0.002,2102.8,2101.8,1.18945665]
[1770543385550,0.002,2102.8,2101.7,4.75782662]
[1770543385952,0.002,2102.8,2101.7,5.68453812]
[1770543386641,0.002,2102.8,2101.7,4.75782662]
[1770543387672,0.002,2102.8,2101.5,4.758053]
[1770543388059,0.002,2102.8,2101.5,5.6847645]
[1770543388372,0.002,2102.8,2101.5,4.758053]
[1770543388976,0.002,2102.8,2101.6,0.9267115]
[1770543389359,0.002,2102.8,2101.5,4.758053]
[1770543389565,0.002,2102.8,2101.3,4.758053]
[1770543389871,0.98727373,2102.8,2101.3,4.758053]
[1770543390045,0.98727373,2102.8,2101.3,5.6847645]
[1770543390246,0.98727373,2102.8,2101.4,0.9267115]
[1770543391067,0.98727373,2102.8,2101.3,4.758053]
[1770543391483,0.002,2102.8,2101.7,8.90932999]
[1770543392269,0.002,2102.8,2101.8,0.9267115]
[1770543392470,0.98727373,2102.8,2101.7,1.18951325]
[1770543392688,0.04083299,2102.7,2101.7,1.18951325]
[1770543392888,1.02610672,2102.7,2101.6,1.18953834]
[1770543393385,1.02610672,2101.8,2101.2,0.001]
[1770543393584,2.17444749,2102.3,2101.2,0.001]
[1770543393788,0.04083299,2102.1,2101.2,0.001]
[1770543393960,0.6,2101.6,2101.2,0.001]
[1770543394877,1.18915954,2102.4,2101.2,0.001]
[1770543395074,2.17443327,2102.4,2101.2,0.001]
[1770543395488,1.02610672,2102.0,2101.2,0.001]
[1770543395676,1.18940006,2101.9,2101.2,0.001]
[1770543395868,2.17465449,2102.0,2101.2,0.001]
[1770543396192,4.75695483,2102.2,2101.2,0.001]
[1770543396663,5.70513183,2102.2,2101.2,0.001]
[1770543397174,0.948177,2102.6,2101.2,0.001]
[1770543397678,2.13721619,2102.6,2101.2,1.1907963]
[1770543398195,0.002,2102.8,2101.5,7.00131204]
[1770543398367,1.19092217,2102.8,2101.5,7.00131204]
[1770543398566,1.23175516,2102.8,2101.5,7.00131204]
[1770543398773,1.23175516,2102.8,2101.3,0.93203244]
[1770543398975,1.19092217,2102.8,2101.3,0.93203244]
[1770543399178,1.19089964,2102.8,2101.3,0.93203244]
[1770543399383,0.002,2102.8,2101.3,0.97286543]
[1770543399606,0.002,2102.8,2101.9,1.18940006]
[1770543399892,0.950177,2102.8,2101.3,5.81405]
[1770543400095,0.948177,2102.3,2101.3,1.18970231]
[1770543400271,0.948177,2102.3,2101.3,1.18972338]
[1770543400674,0.948177,2102.3,2101.2,0.001]
[1770543401007,0.04083299,2102.1,2101.2,0.001]
[1770543401169,0.98900999,2102.1,2101.2,0.001]
[1770543401571,2.13769025,2101.7,2101.2,0.001]
[1770543402001,2.17852324,2101.7,2101.2,0.001]
[1770543402274,0.04083299,2101.4,2099.7,4.25703244]
[1770543402473,0.948177,2101.4,2100.2,1.190349]
[1770543402892,0.04083299,2101.3,2100.2,1.190349]
[1770543403391,0.04083299,2101.0,2100.1,1.19038205]
[1770543403597,0.04083299,2101.0,2100.0,4.76190127]
[1770543403598,1.1897963,2101.2,2099.8,4.76224888]
[1770543404400,2.1379733,2101.2,2099.8,4.76224888]
[1770543404697,0.04083299,2100.7,2099.7,1.19064581]
[1770543404994,2.1379733,2101.2,2099.7,2.12267825]
[1770543405202,0.04083299,2101.1,2100.3,0.001]
[1770543405371,0.98900999,2101.1,2100.3,0.001]
[1770543405685,1.18990956,2101.0,2100.3,0.001]
[1770543406293,0.04283299,2101.4,2100.3,0.001]
[1770543406294,0.002,2101.4,2100.3,0.001]
[1770543406594,1.19168614,2101.4,2100.3,0.001]
[1770543407105,1.23251913,2101.4,2100.3,0.001]
[1770543407492,1.19168614,2101.4,2100.3,0.001]
[1770543408197,0.98900999,2101.1,2100.3,0.001]
[1770543408499,0.948177,2101.1,2100.3,0.001]
[1770543408697,1.19168614,2101.4,2100.3,0.001]
[1770543408893,1.23251913,2101.4,2100.3,0.001]
[1770543409093,1.19168614,2101.4,2100.3,0.001]
[1770543409293,1.23251913,2101.4,2100.3,0.001]
[1770543409876,1.19168614,2101.4,2100.3,0.001]
[1770543411681,1.23251913,2101.4,2100.3,0.001]
[1770543411884,1.1897963,2101.2,2100.3,0.001]
[1770543412299,2.1379733,2101.2,2100.3,0.001]
[1770543412978,1.1897963,2101.2,2100.3,0.001]
[1770543413499,1.1916852,2101.4,2100.3,0.001]
[1770543414011,1.19170719,2101.4,2100.3,0.001]
[1770543414697,0.002,2101.4,2100.3,0.93303244]
[1770543416504,0.002,2101.4,2100.4,2.12228191]
[1770543417484,0.002,2101.4,2100.4,1.19024947]
[1770543417701,0.04083299,2101.3,2100.3,1.19126284]
[1770543418006,0.948177,2101.3,2100.3,1.19126284]
[1770543418206,0.948177,2101.3,2100.6,0.001]
[1770543418809,1.1897963,2101.2,2100.6,0.001]
[1770543419188,0.002,2101.4,2100.6,0.001]
[1770543420011,1.19170457,2101.4,2100.6,0.001]
[1770543420219,0.002,2101.4,2100.6,0.001]
[1770543420386,0.002,2101.4,2100.6,0.93303244]
[1770543420817,0.002,2101.4,2100.7,1.19007949]
[1770543421482,0.002,2101.4,2100.7,2.12211193]
[1770543421686,0.002,2101.4,2100.6,1.19109224]
[1770543421883,0.950177,2101.4,2100.6,0.001]
[1770543422138,0.002,2101.4,2100.6,1.19112742]
[1770543422290,0.950177,2101.4,2100.6,0.001]
[1770543422702,0.002,2101.4,2100.6,1.1911152]
[1770543422886,0.002,2101.4,2100.6,0.001]
[1770543425190,1.19168306,2101.4,2100.6,0.001]
[1770543425912,0.002,2101.4,2100.6,0.001]
[1770543430392,1.03203827,2101.2,2100.6,0.001]
[1770543430923,1.03403827,2101.2,2100.6,0.001]
[1770543431621,0.99320528,2101.2,2100.6,0.001]
[1770543431938,0.002,2101.2,2100.6,0.001]